bitfinex/quotes_SOLUSD_20251103
["timestamp","ask_amount","ask_price","bid_price","bid_amount"]
[1762164483525,55.3,175.56,175.49,0.14216157]
[1762164483526,3.81186749,175.53,175.49,0.14216157]
[1762164483830,6.37673619,175.54,175.49,0.14216157]
[1762164484009,9.5066857,175.55,175.49,0.14216157]
[1762164484210,61.6761313,175.56,175.51,0.14216157]
[1762164484417,0.68,175.56,175.51,5.83958771]
[1762164484715,0.68,175.55,175.51,0.14216157]
[1762164484911,0.68,175.55,175.51,5.83978041]
[1762164485121,13.16313263,175.57,175.51,9.3197803]
[1762164485312,0.68,175.56,175.51,9.3197803]
[1762164486023,6.37620485,175.56,175.51,9.3197803]
[1762164486234,0.68,175.55,175.51,9.3197803]
[1762164486537,0.68,175.55,175.51,6.50978041]
[1762164487227,0.3031437,206.99,175.51,6.50978041]
[1762164487228,6.47408858,175.63,175.54,23.40199989]
[1762164487529,3.91323995,175.63,175.6,2.80999989]
[1762164487733,0.1,175.63,175.62,0.14216157]
[1762164489929,0.1,175.63,175.61,0.14216157]
[1762164491508,6.47381888,175.63,175.58,8.50537236]
[1762164491717,6.47381888,175.63,175.59,0.14216157]
[1762164491918,0.78,175.63,175.59,0.81216157]
[1762164492613,6.47390744,175.63,175.59,0.14216157]
[1762164493019,0.68,175.62,175.59,0.14216157]
[1762164493421,0.68,175.62,175.56,2.80999989]
[1762164493422,0.68,175.62,175.56,0.14216157]
[1762164493630,4.49323995,175.62,175.57,0.67]
[1762164493835,0.68,175.62,175.57,0.67]
[1762164494031,0.68,175.61,175.56,2.80999989]
[1762164494238,0.68,175.61,175.57,0.14216157]
[1762164494742,0.78,175.63,175.57,0.81216157]
[1762164494930,4.59323995,175.63,175.57,0.81216157]
[1762164495123,0.78,175.63,175.57,0.81216157]
[1762164495323,0.78,175.63,175.57,3.62216146]
[1762164495620,4.59323995,175.63,175.57,3.62216146]
[1762164495816,10.28707059,175.63,175.59,0.14216157]
[1762164496013,6.47383064,175.63,175.59,0.14216157]
[1762164496430,0.68,175.62,175.59,0.14216157]
[1762164496828,0.68,175.62,175.56,6.36601646]
[1762164497140,0.68,175.62,175.57,0.14216157]
[1762164497545,0.68,175.62,175.57,0.81216157]
[1762164497838,6.37417183,175.62,175.57,0.81216157]
[1762164498238,0.68,175.61,175.57,0.14216157]
[1762164498953,0.68,175.61,175.44,15.21824428]
[1762164498954,55.3,175.6,175.52,2.80999989]
[1762164499117,55.3,175.6,175.53,20.592]
[1762164499317,4.49008205,175.59,175.52,0.67]
[1762164499744,0.68,175.58,175.52,0.67]
[1762164499944,0.68,175.58,175.48,2.80999989]
[1762164499945,5.69573389,175.57,175.48,0.67]
[1762164500143,9.50581594,175.57,175.51,0.14216157]
[1762164500453,0.68,175.56,175.5,20.592]
[1762164500942,5.69638279,175.55,175.51,0.14216157]
[1762164501454,0.68,175.54,175.5,26.28992346]
[1762164501635,0.68,175.54,175.5,26.95992346]
[1762164502326,6.37611977,175.56,175.51,0.14216157]
[1762164502740,0.68,175.55,175.5,0.67]
[1762164502936,5.6967073,175.54,175.51,0.14216157]
[1762164503255,0.68,175.55,175.48,0.14216157]
[1762164503452,0.68,175.55,175.48,0.81216157]
[1762164503626,9.5061878,175.56,175.48,3.62216146]
[1762164503832,0.68,175.55,175.48,3.62216146]
[1762164505052,9.50585653,175.57,175.5,0.14216157]
[1762164505254,5.69577448,175.57,175.5,2.95216146]
[1762164505455,5.69577448,175.57,175.52,0.14216157]
[1762164505628,61.67577448,175.57,175.52,0.14216157]
[1762164505826,0.68,175.56,175.52,0.14216157]
[1762164506255,34.82973129,175.59,175.52,0.14216157]
[1762164506256,0.68,175.59,175.52,24.21416146]
[1762164506554,3.81045678,175.6,175.55,2.95216146]
[1762164506853,6.38420704,175.62,175.57,0.14216157]
[1762164507033,10.19562688,175.62,175.57,0.14216157]
[1762164507233,4.92500257,175.61,175.57,0.14216157]
[1762164507446,4.23500257,175.6,175.57,0.14216157]
[1762164508256,5.69420704,175.62,175.57,6.51778176]
[1762164508458,4.2353964,175.61,175.57,6.51778176]
[1762164508760,0.69,175.6,175.57,0.14216157]
[1762164509055,4.9253964,175.61,175.57,0.14216157]
[1762164509250,10.61990152,175.61,175.57,0.14216157]
[1762164509449,4.9253964,175.6,175.56,0.14216157]
[1762164509644,0.69,175.59,175.56,0.14216157]
[1762164510447,4.9253964,175.59,175.56,0.14216157]
[1762164510655,0.69,175.59,175.56,0.14216157]
[1762164511048,4.23725582,175.59,175.56,0.14216157]
[1762164511249,10.19592496,175.61,175.56,0.14216157]
[1762164511250,5.69484288,175.6,175.56,0.14216157]
[1762164511439,4.23736462,175.59,175.56,0.14216157]
[1762164511835,4.23736462,175.59,175.55,0.14216157]
[1762164512042,4.92736462,175.59,175.55,0.14216157]
[1762164512632,9.93247034,175.59,175.55,0.14216157]
[1762164512861,9.93247034,175.59,175.52,6.36804602]
[1762164512862,4.92736462,175.58,175.52,6.37733142]
[1762164513065,59.53736462,175.57,175.52,6.37733142]
[1762164513242,55.3,175.57,175.52,6.37733142]
[1762164513442,55.3,175.57,175.53,0.14216157]
[1762164513443,55.99,175.57,175.53,0.14216157]
[1762164514050,61.6857426,175.57,175.53,0.14216157]
[1762164514761,60.9957426,175.57,175.53,0.14216157]
[1762164515061,4.23835562,175.56,175.53,0.14216157]
[1762164515260,8.05273685,175.56,175.53,0.14216157]
[1762164515445,61.6857426,175.57,175.53,0.14216157]
[1762164515647,4.23845022,175.56,175.53,0.14216157]
[1762164515964,4.92845022,175.56,175.53,0.14216157]
[1762164516461,4.23845022,175.56,175.53,0.14216157]
[1762164519667,60.99585275,175.57,175.53,0.14216157]
[1762164519877,4.24042538,175.56,175.53,0.14216157]
[1762164521362,4.24042538,175.56,175.53,0.82216157]
[1762164523263,4.24042538,175.56,175.53,6.5191774]
[1762164523967,4.24042538,175.56,175.53,0.82216157]
[1762164524469,4.93042538,175.56,175.52,5.69729071]
[1762164524657,4.93042538,175.56,175.52,6.37729071]
[1762164525466,55.3,175.57,175.53,0.68]
[1762164525660,4.24400747,175.56,175.53,0.68]
[1762164525879,4.24400747,175.56,175.54,0.14216157]
[1762164526246,4.24400747,175.56,175.54,0.82216157]
[1762164527354,55.3,175.61,175.54,0.82216157]
[1762164527556,4.24871276,175.6,175.56,6.51020759]
[1762164527760,3.82248118,175.62,175.59,0.14216157]
[1762164527961,8.07104628,175.61,175.59,0.14216157]
[1762164528167,4.2485651,175.6,175.59,0.14216157]
[1762164528771,4.2485651,175.6,175.58,0.14216157]
[1762164528995,3.82248118,175.61,175.58,0.14216157]
[1762164529274,4.24974587,175.6,175.58,0.82216157]
[1762164529577,3.82248118,175.61,175.58,0.82216157]
[1762164529783,4.25010649,175.6,175.58,0.14216157]
[1762164529958,3.82248118,175.61,175.58,0.14216157]
[1762164530160,4.25011902,175.6,175.58,0.14216157]
[1762164530379,4.51248118,175.61,175.58,0.14216157]
[1762164530582,4.25028081,175.6,175.58,0.14216157]
[1762164530768,4.51248118,175.61,175.58,0.14216157]
[1762164530966,4.25028081,175.6,175.58,0.14216157]
[1762164531164,9.51698954,175.61,175.57,0.14216157]
[1762164531474,8.76253636,175.6,175.54,6.37412112]
[1762164531663,8.07253636,175.59,175.54,12.07080662]
[1762164531859,4.25005518,175.58,175.54,6.3766855]
[1762164532062,4.25005518,175.57,175.55,0.82216157]
[1762164532270,3.82248118,175.58,175.55,0.82216157]
[1762164532576,4.24994048,175.57,175.55,0.82216157]
[1762164532778,3.82248118,175.59,175.55,0.82216157]
[1762164532986,4.24987152,175.58,175.55,0.82216157]
[1762164533168,4.24987152,175.57,175.55,0.82216157]
[1762164533482,4.51248118,175.59,175.55,6.5185085]
[1762164533679,4.25099719,175.58,175.57,2.94780521]
[1762164534178,3.82248118,175.61,175.58,0.14216157]
[1762164534359,8.07402067,175.6,175.58,0.82216157]
[1762164534559,4.25153949,175.59,175.58,0.82216157]
[1762164534761,3.82248118,175.61,175.58,3.62780521]
[1762164534979,4.25264678,175.6,175.58,3.62780521]
[1762164535180,3.82248118,175.61,175.6,0.14216157]
[1762164535383,4.25242129,175.61,175.6,0.14216157]
[1762164535562,0.1,175.63,175.6,3.62780521]
[1762164535764,4.25244445,175.62,175.61,0.82216157]
[1762164535980,3.92661271,175.63,175.61,0.82216157]
[1762164536163,0.1,175.63,175.62,0.14216157]
[1762164536363,4.35168443,175.63,175.62,0.14216157]
[1762164536665,4.35168443,175.63,175.62,0.83216157]
[1762164537274,4.35168443,175.63,175.62,6.52627385]
[1762164540478,4.35168443,175.63,175.6,2.94780521]
[1762164540775,0.1,175.63,175.62,0.86216157]
[1762164541569,0.1,175.63,175.62,6.55627385]
[1762164542982,0.1,175.63,175.62,9.36191749]
[1762164543199,0.1,175.63,175.62,29.95391749]
[1762164543566,0.1,175.67,175.65,20.592]
[1762164543757,0.1,175.67,175.66,0.14216157]
[1762164545067,0.1,175.67,175.63,0.14216157]
[1762164545068,0.79,175.67,175.63,0.14216157]
[1762164545256,0.1,175.67,175.63,0.86216157]
[1762164546782,0.1,175.67,175.65,0.14216157]
[1762164547874,0.1,175.67,175.66,0.72]
[1762164548184,0.1,175.67,175.66,23.24830957]
[1762164548585,0.2,175.68,175.67,20.73416157]
[1762164548768,0.2,175.68,175.67,23.24830957]
[1762164548977,0.2,175.68,175.67,28.94080117]
[1762164549963,0.2,175.68,175.67,27.14665317]
[1762164550381,0.2,175.68,175.67,28.94080117]
[1762164551797,1e-08,175.68,175.67,28.94080117]
[1762164552191,1e-08,175.68,175.64,0.72]
[1762164552388,1e-08,175.68,175.65,0.72]
[1762164552583,1e-08,175.68,175.66,0.14216157]
[1762164552901,0.69,175.67,175.61,5.69443653]
[1762164553483,0.69,175.67,175.62,20.592]
[1762164553687,0.69,175.67,175.63,0.14216157]
[1762164554609,6.38252924,175.67,175.63,0.14216157]
[1762164555105,0.69,175.66,175.63,0.14216157]
[1762164555282,0.69,175.66,175.59,0.72]
[1762164555694,0.69,175.66,175.59,21.312]
[1762164555894,0.69,175.66,175.6,0.14216157]
[1762164556483,1e-08,175.68,175.61,2.514148]
[1762164556684,5.69218937,175.68,175.61,2.514148]
[1762164556894,1e-08,175.68,175.62,2.65630957]
[1762164557092,1e-08,175.68,175.63,22.386148]
[1762164557302,1e-08,175.68,175.65,0.14216157]
[1762164557506,1e-08,175.68,175.65,2.65630957]
[1762164557706,1e-08,175.68,175.65,0.14216157]
[1762164558206,1e-08,175.68,175.65,1.93630957]
[1762164558603,1e-08,175.68,175.65,8.3492858]
[1762164559311,1e-08,175.68,175.67,0.14216157]
[1762164562598,1e-08,175.68,175.67,8.34880117]
[1762164563507,1e-08,175.68,175.67,2.65630957]
[1762164563698,1e-08,175.68,175.67,0.14216157]
[1762164563896,1e-08,175.68,175.67,5.83465317]
[1762164564404,1e-08,175.68,175.66,0.14216157]
[1762164564587,1e-08,175.68,175.66,1.93630957]
[1762164565213,1e-08,175.68,175.66,0.14216157]
[1762164566214,1e-08,175.68,175.66,2.60630957]
[1762164566401,1e-08,175.68,175.66,1.93630957]
[1762164566605,1e-08,175.68,175.66,0.14216157]
[1762164567113,1e-08,175.68,175.66,6.5449643]
[1762164568316,1e-08,175.68,175.66,0.14216157]
[1762164568511,0.66,175.67,175.66,0.14216157]
[1762164568709,0.66,175.67,175.65,20.592]
[1762164568710,0.66,175.67,175.61,5.69158956]
[1762164569020,0.66,175.67,175.6,0.71]
[1762164569218,0.66,175.67,175.6,2.504148]
[1762164569418,0.66,175.67,175.6,0.71]
[1762164569718,5.69281566,175.66,175.61,5.69441693]
[1762164569919,5.69281566,175.66,175.62,0.14216157]
[1762164570123,0.66,175.66,175.62,0.14216157]
[1762164571308,6.35283339,175.66,175.62,0.14216157]
[1762164571507,6.35283339,175.66,175.56,14.23954779]
[1762164571508,4.23807683,175.65,175.56,14.94954779]
[1762164571825,4.23807683,175.65,175.53,28.48497315]
[1762164571826,4.23807683,175.64,175.54,1.794148]
[1762164572002,4.89807683,175.63,175.55,6.40612835]
[1762164572201,4.23807683,175.62,175.56,0.14216157]
[1762164572421,0.66,175.62,175.56,20.592]
[1762164572727,0.66,175.62,175.56,21.302]
[1762164572912,0.66,175.61,175.56,22.386148]
[1762164573114,4.47434004,175.65,175.57,2.504148]
[1762164573327,4.23910766,175.64,175.59,1.93630957]
[1762164573820,4.23910766,175.64,175.59,0.14216157]
[1762164574024,0.66,175.63,175.59,0.14216157]
[1762164575203,0.66,175.63,175.6,0.14216157]
[1762164576118,4.23969944,175.64,175.6,0.14216157]
[1762164576311,4.89969944,175.64,175.6,0.14216157]
[1762164576508,4.23969944,175.64,175.6,20.07380338]
[1762164576714,1e-08,175.68,175.63,20.592]
[1762164577011,1e-08,175.68,175.63,22.386148]
[1762164577208,1e-08,175.68,175.65,0.14216157]
[1762164577417,0.66,175.67,175.61,4.23969944]
[1762164577618,4.24103889,175.66,175.61,0.14216157]
[1762164577926,4.24103889,175.65,175.61,0.14216157]
[1762164578122,0.66,175.66,175.61,0.14216157]
[1762164578327,4.2434992,175.65,175.61,0.14216157]
[1762164578509,4.2434992,175.64,175.61,0.14216157]
[1762164578828,0.66,175.65,175.61,0.14216157]
[1762164579033,4.24495502,175.64,175.61,0.14216157]
[1762164579524,4.90495502,175.63,175.58,20.592]
[1762164579714,0.66,175.63,175.58,20.592]
[1762164579916,0.66,175.63,175.58,21.302]
[1762164580116,4.90516759,175.63,175.58,21.302]
[1762164580303,0.66,175.63,175.59,0.14216157]
[1762164580504,0.66,175.63,175.59,5.8371009]
[1762164581225,4.24497929,175.63,175.59,7.6312489]
[1762164581413,3.82072629,175.65,175.6,2.504148]
[1762164581724,4.24505886,175.64,175.6,1.794148]
[1762164582023,4.24505886,175.63,175.59,5.8371009]
[1762164582226,55.3,175.64,175.61,0.14216157]
[1762164582426,55.3,175.64,175.61,7.63058129]
[1762164582627,55.3,175.64,175.61,8.34058129]
[1762164582816,55.3,175.64,175.63,0.14216157]
[1762164583615,1e-08,175.68,175.63,2.64630957]
[1762164583817,4.24476249,175.67,175.65,0.14216157]
[1762164584015,4.24476249,175.66,175.65,0.14216157]
[1762164584332,4.24476249,175.67,175.65,0.14216157]
[1762164584514,1e-08,175.68,175.65,0.14216157]
[1762164584714,4.24528822,175.67,175.65,0.14216157]
[1762164584916,4.24528822,175.67,175.65,5.83521674]
[1762164585127,4.24528822,175.67,175.65,6.54521674]
[1762164585431,1e-08,175.68,175.65,5.83521674]
[1762164585822,4.90609456,175.68,175.65,5.83521674]
[1762164586024,0.66000001,175.68,175.65,5.83521674]
[1762164586324,1e-08,175.68,175.65,6.54521674]
[1762164586530,4.24609834,175.68,175.65,6.54521674]
[1762164586834,1e-08,175.68,175.65,5.83521674]
[1762164587132,1e-08,175.68,175.65,6.54521674]
[1762164587339,4.24651102,175.68,175.65,6.54521674]
[1762164587638,1e-08,175.68,175.65,6.54521674]
[1762164588017,4.24660417,175.68,175.65,6.54521674]
[1762164588335,1e-08,175.68,175.65,6.54521674]
[1762164588718,4.24618303,175.68,175.65,6.54521674]
[1762164588936,1e-08,175.68,175.65,6.54521674]
[1762164589322,4.24634155,175.68,175.65,6.54521674]
[1762164589528,1e-08,175.68,175.65,6.54521674]
[1762164590036,4.24626964,175.68,175.65,6.54521674]
[1762164590240,1e-08,175.68,175.65,6.54521674]
[1762164590628,4.24655916,175.68,175.67,0.14216157]
[1762164591035,1e-08,175.68,175.67,0.14216157]
[1762164591331,1e-08,175.68,175.67,2.64630957]
[1762164591539,1e-08,175.68,175.67,8.33880117]
[1762164591736,1e-08,175.68,175.67,6.54465317]
[1762164593129,1e-08,175.68,175.67,8.33880117]
[1762164595018,1e-08,175.68,175.67,5.6924916]
[1762164596420,1e-08,175.68,175.65,19.92598917]
[1762164597148,1e-08,175.68,175.66,0.14216157]
[1762164598625,1e-08,175.68,175.66,5.69279759]
[1762164600757,1e-08,175.68,175.65,5.83530133]
[1762164600981,1e-08,175.68,175.65,6.50530133]
[1762164601248,1e-08,175.68,175.67,1.93630957]
[1762164601625,1e-08,175.68,175.67,2.60630957]
[1762164601828,1e-08,175.68,175.67,0.81216157]
[1762164602044,1e-08,175.68,175.67,2.60630957]
[1762164602748,1e-08,175.68,175.67,28.89080117]
[1762164604931,1e-08,175.68,175.67,10.09294917]
[1762164605234,0.1,175.71,175.7,22.52830957]
[1762164605539,0.2,175.77,175.71,21.40416157]
[1762164605733,0.2,175.77,175.74,1.93630957]
[1762164606052,0.2,175.77,175.74,2.50533198]
[1762164606249,0.2,175.77,175.74,3.17533198]
[1762164606556,0.2,175.77,175.74,30.46189317]
[1762164608741,0.2,175.77,175.74,9.86989317]
[1762164608941,0.2,175.77,175.74,29.22287076]
[1762164610170,0.2,175.77,175.74,9.86989317]
[1762164610835,0.2,175.77,175.74,30.46189317]
[1762164611055,0.2,175.77,175.74,9.86989317]
[1762164613242,0.2,175.77,175.74,9.30087076]
[1762164613442,0.2,175.77,175.74,29.89287076]
[1762164614056,0.2,175.77,175.74,27.09438576]
[1762164614255,0.2,175.77,175.74,29.89287076]
[1762164615246,0.2,175.77,175.74,9.30087076]
[1762164615651,0.2,175.77,175.74,26.42438576]
[1762164615977,0.2,175.77,175.74,29.89287076]
[1762164617166,0.2,175.77,175.74,9.30087076]
[1762164617368,1e-08,175.75,175.74,9.30087076]
[1762164617570,1e-08,175.75,175.74,9.86989317]
[1762164617752,0.2,175.77,175.75,20.73416157]
[1762164618069,0.2,175.77,175.76,5.73913157]
[1762164618253,0.2,175.77,175.76,3.61064657]
[1762164618567,0.2,175.77,175.76,24.20264657]
[1762164619171,0.2,175.77,175.76,29.89222326]
[1762164621850,0.2,175.77,175.76,29.22222326]
[1762164622051,0.2,175.77,175.76,26.42373826]
[1762164622254,0.2,175.77,175.76,29.89222326]
[1762164623267,0.2,175.77,175.76,29.22222326]
[1762164624355,0.89,175.77,175.76,26.28157669]
[1762164624557,0.89,175.77,175.75,5.68983855]
[1762164624759,0.89,175.77,175.73,26.28254799]
[1762164624760,0.69,175.76,175.73,26.28254799]
[1762164625174,0.69,175.76,175.74,0.14216157]
[1762164625361,0.69,175.76,175.73,26.28254799]
[1762164625568,0.69,175.76,175.68,5.69212787]
[1762164625763,5.68990042,175.75,175.67,5.69241777]
[1762164626083,5.68990042,175.75,175.68,20.73416157]
[1762164626296,0.67,175.74,175.67,5.69241777]
[1762164626454,4.90232658,175.74,175.68,0.14216157]
[1762164626787,4.90232658,175.74,175.65,17.03052751]
[1762164627084,4.90232658,175.74,175.65,20.592]
[1762164627085,0.71,175.73,175.65,20.592]
[1762164627255,4.94232658,175.73,175.62,2.798485]
[1762164627459,4.23232658,175.72,175.64,20.592]
[1762164627668,4.94232658,175.72,175.64,20.592]
[1762164627876,3.80899009,175.74,175.64,20.592]
[1762164627877,10.6335223,175.71,175.64,26.28533994]
[1762164628059,6.40119572,175.71,175.64,26.28533994]
[1762164628262,0.71,175.7,175.65,0.14216157]
[1762164628670,0.71,175.7,175.64,26.28533994]
[1762164628980,6.40178085,175.7,175.64,26.28533994]
[1762164629376,0.71,175.69,175.64,26.28533994]
[1762164630578,6.40188673,175.69,175.62,5.83598359]
[1762164630776,6.40188673,175.69,175.62,0.14216157]
[1762164631091,6.40188673,175.69,175.58,14.95783274]
[1762164631092,4.94798815,175.68,175.59,5.69508514]
[1762164631383,4.94798815,175.68,175.6,0.14216157]
[1762164631583,0.71,175.67,175.6,0.14216157]
[1762164631762,0.71,175.67,175.6,2.94064657]
[1762164631964,0.71,175.67,175.61,5.69443653]
[1762164631965,6.40249462,175.67,175.61,5.69443653]
[1762164632360,0.71,175.66,175.61,5.69443653]
[1762164632778,0.71,175.66,175.62,0.14216157]
[1762164633186,0.71,175.66,175.62,2.94064657]
[1762164633515,4.94642837,175.69,175.64,2.798485]
[1762164633779,4.94642837,175.69,175.65,0.14216157]
[1762164634079,0.71,175.68,175.65,5.83505344]
[1762164634461,4.94608755,175.71,175.67,0.14216157]
[1762164634778,0.71,175.71,175.67,0.14216157]
[1762164635097,0.71,175.7,175.67,0.14216157]
[1762164635292,0.71,175.7,175.65,8.49137687]
[1762164635594,0.71,175.7,175.66,0.14216157]
[1762164636497,0.71,175.7,175.66,5.8349328]
[1762164637380,3.81199772,175.73,175.66,22.86545696]
[1762164637583,0.71,175.73,175.68,2.94064657]
[1762164637770,0.71,175.72,175.68,0.14216157]
[1762164637977,0.71,175.72,175.68,5.83424412]
[1762164638302,0.67241278,175.72,175.68,5.83424412]
[1762164640695,0.91,175.77,175.69,0.72]
[1762164640908,4.94558502,175.76,175.69,0.14216157]
[1762164641107,0.71,175.76,175.71,0.14216157]
[1762164641395,0.2,175.77,175.71,0.14216157]
[1762164641396,0.71,175.75,175.71,0.14216157]
[1762164642698,0.71,175.75,175.71,6.5531636]
[1762164643091,4.23537321,175.76,175.71,5.8331636]
[1762164643288,4.23537321,175.76,175.72,2.798485]
[1762164643289,4.94537321,175.76,175.72,2.798485]
[1762164643520,0.71,175.76,175.73,0.14216157]
[1762164644417,0.71,175.76,175.69,5.69163741]
[1762164644591,4.94669932,175.76,175.69,5.69163741]
[1762164644790,10.63640577,175.76,175.68,5.69216757]
[1762164645116,0.2,175.77,175.71,20.592]
[1762164645304,0.2,175.77,175.75,2.798485]
[1762164645613,0.2,175.77,175.73,0.14216157]
[1762164645817,0.2,175.77,175.76,2.94064657]
[1762164645994,0.2,175.77,175.76,3.66064657]
[1762164646790,0.2,175.77,175.76,9.35022326]
[1762164647099,0.2,175.77,175.76,8.63022326]
[1762164647797,0.2,175.77,175.76,5.83173826]
[1762164648001,0.2,175.77,175.76,0.14216157]
[1762164648823,0.2,175.77,175.73,0.72]
[1762164649019,0.91,175.77,175.72,5.69087184]
[1762164649203,0.91,175.77,175.7,0.72]
[1762164649392,0.71,175.76,175.69,2.798485]
[1762164649592,0.71,175.76,175.69,3.518485]
[1762164649914,0.71,175.76,175.7,26.28351963]
[1762164650520,0.71,175.76,175.71,0.14216157]
[1762164650821,6.39969781,175.76,175.7,26.28351963]
[1762164650998,6.39969781,175.76,175.69,6.35838438]
[1762164650999,4.23623344,175.75,175.69,5.69179244]
[1762164651327,4.94623344,175.75,175.68,5.69216744]
[1762164651620,12.29,175.74,175.67,5.69248007]
[1762164652004,6.40054799,175.73,175.67,5.69248007]
[1762164652507,0.71,175.72,175.67,5.69248007]
[1762164652823,0.71,175.72,175.67,0.14216157]
[1762164653007,6.40026505,175.74,175.68,7.07838438]
[1762164653213,12.29,175.73,175.68,7.07838438]
[1762164653418,12.29,175.73,175.68,0.72]
[1762164653623,12.29,175.73,175.67,6.50054595]
[1762164653624,0.71,175.72,175.67,0.14216157]
[1762164653922,10.63832606,175.72,175.66,26.28475173]
[1762164654121,6.4009494,175.72,175.66,26.28475173]
[1762164654309,0.71,175.71,175.66,26.28475173]
[1762164657603,11.58,175.7,175.66,26.28475173]
[1762164658397,12.29,175.7,175.66,26.28475173]
[1762164658707,0.71,175.69,175.66,26.28475173]
[1762164659805,11.58,175.7,175.66,26.28475173]
[1762164660123,12.28,175.7,175.66,26.97475173]
[1762164660324,11.58,175.7,175.65,0.14216157]
[1762164660527,8.75391269,175.69,175.6,5.69476082]
[1762164660821,4.93898004,175.68,175.6,6.38476082]
[1762164661127,0.7,175.67,175.62,0.14216157]
[1762164661600,0.7,175.67,175.62,0.69]
[1762164661912,11.56,175.66,175.64,0.14216157]
[1762164662425,11.56,175.66,175.64,5.83544414]
[1762164662914,11.56,175.66,175.64,6.52544414]
[1762164663098,11.56,175.66,175.64,0.14216157]
[1762164663298,12.26,175.66,175.64,0.14216157]
[1762164663915,0.7,175.65,175.61,5.69423938]
[1762164664123,11.56,175.66,175.62,0.69]
[1762164664304,11.56,175.66,175.63,5.83591634]
[1762164664510,0.7,175.68,175.63,5.83591634]
[1762164664710,12.28,175.67,175.63,5.83591634]
[1762164665225,0.7,175.66,175.63,5.83591634]
[1762164665521,11.58,175.67,175.63,6.52591634]
[1762164665711,12.28,175.67,175.63,6.52591634]
[1762164665910,0.7,175.66,175.62,5.69396032]
[1762164666923,0.7,175.66,175.6,21.42416157]
[1762164666924,0.7,175.66,175.61,5.8365981]
[1762164667319,0.7,175.66,175.61,6.5265981]
[1762164667506,0.7,175.66,175.61,5.8365981]
[1762164667709,0.7,175.66,175.62,0.69]
[1762164669023,11.58,175.67,175.63,10.40549902]
[1762164669333,11.58,175.66,175.65,4.71171095]
[1762164669619,11.58,175.66,175.65,0.14216157]
[1762164669808,12.28,175.66,175.62,0.14216157]
[1762164670326,12.28,175.66,175.62,0.83216157]
[1762164670928,11.58,175.66,175.62,2.62698543]
[1762164671136,11.58,175.66,175.64,0.14216157]
[1762164672226,0.7,175.68,175.64,5.83554407]
[1762164672421,11.56,175.67,175.64,0.14216157]
[1762164672727,11.56,175.67,175.58,0.69]
[1762164672728,66.86,175.67,175.58,0.69]
[1762164672924,64.06734,175.66,175.58,5.69540949]
[1762164673127,8.06734,175.65,175.58,5.69540949]
[1762164673318,4.24582951,175.64,175.58,6.38540949]
[1762164673516,55.3,175.66,175.63,1.79482386]
[1762164673723,11.58,175.65,175.64,2.62698543]
[1762164674226,11.58,175.65,175.63,7.4883904]
[1762164674421,11.58,175.65,175.61,6.52634037]
[1762164674619,12.28,175.65,175.61,6.52634037]
[1762164675006,0.7,175.64,175.61,0.14216157]
[1762164675208,0.7,175.64,175.57,0.89]
[1762164675209,8.76475941,175.64,175.57,0.89]
[1762164675429,0.7,175.63,175.57,0.89]
[1762164675622,0.7,175.63,175.57,2.68482386]
[1762164675822,0.7,175.63,175.58,0.14216157]
[1762164676220,0.7,175.63,175.58,6.52752686]
[1762164676221,11.58,175.62,175.58,6.52752686]
[1762164676530,0.7,175.61,175.58,5.69536529]
[1762164677619,0.7,175.61,175.57,0.34216157]
[1762164677816,0.7,175.61,175.57,0.2]
[1762164678134,0.7,175.65,175.6,7.48935452]
[1762164678328,0.7,175.65,175.61,1.93698543]
[1762164678539,11.58,175.64,175.61,0.83216157]
[1762164678831,11.58,175.64,175.61,0.14216157]
[1762164679025,0.7,175.65,175.61,0.14216157]
[1762164679226,11.58,175.64,175.61,0.14216157]
[1762164679527,11.58,175.63,175.61,0.14216157]
[1762164680125,11.58,175.63,175.61,5.83648724]
[1762164680632,11.58,175.63,175.61,5.69432567]
[1762164681036,0.7,175.65,175.61,5.69432567]
[1762164681240,11.58,175.64,175.61,5.69432567]
[1762164681539,11.58,175.64,175.61,6.38432567]
[1762164682120,11.58,175.64,175.61,5.69432567]